fUST/lending_fUST_20240918
["ID","MTS","AMOUNT","RATE_DAILY","PERIOD"]
[338420435,1726626647209,-500.0,0.00021917,2]
[338420436,1726626647221,-2808.79,0.00021917,2]
[338420437,1726626647231,-2808.79,0.00021917,2]
[338420438,1726626647242,-622.6458278,0.00021917,2]
[338420439,1726626647252,-2808.79,0.00021917,2]
[338420440,1726626647261,-2808.79,0.00021917,2]
[338420441,1726626647271,-2808.79,0.00021917,2]
[338420442,1726626647281,-2808.79,0.00021917,2]
[338420443,1726626647291,-2808.79,0.00021917,2]
[338420444,1726626647302,-2808.79,0.00021917,2]
[338420445,1726626647313,-2808.79,0.00021917,2]
[338420446,1726626647325,-2808.79,0.00021917,2]
[338420447,1726626647335,-2808.79,0.00021917,2]
[338420448,1726626647344,-2808.79,0.00021917,2]
[338420449,1726626647354,-2364.8,0.00021917,2]
[338420450,1726626647363,-500.0,0.00021917,2]
[338420451,1726626647372,-2808.79,0.00021917,2]
[338420452,1726626647383,-2808.79,0.00021917,2]
[338420453,1726626647393,-730.48536857,0.00021917,2]
[338420454,1726626647424,-2078.30463143,0.00021917,2]
[338420455,1726626647434,-2808.79,0.00021917,2]
[338420456,1726626647445,-500.0,0.00021917,2]
[338420457,1726626647455,-2808.79,0.00021917,2]
[338420458,1726626647465,-531.02271583,0.00021917,2]
[338420459,1726626647475,-2808.79,0.00021917,2]
[338420460,1726626647484,-2808.79,0.00021917,2]
[338420461,1726626647494,-2808.79,0.00021917,2]
[338420462,1726626647504,-500.0,0.00021917,2]
[338420463,1726626647513,-2808.79,0.00021917,2]
[338420464,1726626647524,-2808.79,0.00021917,2]
[338420465,1726626647534,-2808.79,0.00021917,2]
[338420466,1726626647543,-500.0,0.00021917,2]
[338420467,1726626647553,-2808.83343492,0.00021917,2]
[338420468,1726626647563,-500.0,0.00021917,2]
[338420469,1726626647573,-500.0,0.00021917,2]
[338420470,1726626647582,-500.0,0.00021917,2]
[338420471,1726626647593,-500.0,0.00021917,2]
[338420472,1726626647608,-500.0,0.00021917,2]
[338420473,1726626647625,-500.0,0.00021917,2]
[338420474,1726626647635,-500.0,0.00021917,2]
[338420475,1726626647645,-656.6,0.00021917,2]
[338420476,1726626647655,-500.0,0.00021917,2]
[338420477,1726626647665,-500.0,0.00021917,2]
[338420478,1726626647675,-645.87,0.00021917,2]
[338420479,1726626647687,-561.6879595,0.00021917,2]
[338420480,1726626647698,-1207.71,0.00021917,2]
[338420481,1726626647709,-501.76782882,0.00021917,2]
[338420482,1726626647718,-500.0,0.00021917,2]
[338420483,1726626647728,-727.23,0.00021917,2]
[338420484,1726626647738,-580.01,0.00021917,2]
[338420485,1726626647747,-500.0,0.00021917,2]
[338420486,1726626647757,-557.60813029,0.00021917,2]
[338420487,1726626647767,-500.0,0.00021917,2]
[338420488,1726626647776,-500.0,0.00021917,2]
[338420489,1726626647786,-1311.57,0.00021917,2]
[338420490,1726626647795,-500.0,0.00021917,2]
[338420491,1726626647805,-1079.71,0.00021917,2]
[338420492,1726626647815,-500.0,0.00021917,2]
[338420493,1726626647825,-500.0,0.00021917,2]
[338420494,1726626647835,-509.85520967,0.00021917,2]
[338420495,1726626647844,-795.48,0.00021917,2]
[338420496,1726626647853,-500.0,0.00021917,2]
[338420497,1726626647863,-500.0,0.00021917,2]
[338420498,1726626647872,-500.16130957,0.00021917,2]
[338420499,1726626647883,-552.86592292,0.00021917,2]
[338420500,1726626647891,-500.0,0.00021917,2]
[338420501,1726626647901,-157.089095,0.00021917,2]
[338420502,1726626647910,-501.23689631,0.00021917,2]
[338420503,1726626647920,-500.0,0.00021917,2]
[338420504,1726626647930,-500.0,0.00021917,2]
[338420505,1726626647940,-500.0,0.00021917,2]
[338420506,1726626647950,-500.0,0.00021917,2]
[338420507,1726626647962,-500.0,0.00021917,2]
[338420508,1726626647972,-1069.48,0.00021917,2]
[338420509,1726626647982,-500.0,0.00021917,2]
[338420510,1726626647991,-500.0,0.00021917,2]
[338420511,1726626648001,-500.0,0.00021917,2]
[338420512,1726626648011,-500.0,0.00021917,2]
[338420513,1726626648020,-500.0,0.00021917,2]
[338420514,1726626648030,-500.0,0.00021917,2]
[338420515,1726626648039,-745.41,0.00021917,2]
[338420516,1726626648048,-771.87,0.00021917,2]
[338420517,1726626648058,-825.21,0.00021917,2]
[338420518,1726626648068,-500.0,0.00021917,2]
[338420519,1726626648079,-500.0,0.00021917,2]
[338420520,1726626648089,-710.15,0.00021917,2]
[338420521,1726626648099,-209.93984858,0.00021917,2]
[338420522,1726626648110,-500.78927955,0.00021917,2]
[338420523,1726626648121,-500.0,0.00021917,2]
[338420524,1726626648131,-1104.98,0.00021917,2]
[338420525,1726626648141,-1322.16,0.00021917,2]
[338420526,1726626648150,-500.0,0.00021917,2]
[338420527,1726626648160,-500.0,0.00021917,2]
[338420528,1726626648169,-585.07487201,0.00021917,2]
[338420529,1726626648179,-500.0,0.00021917,2]
[338420530,1726626648190,-500.0,0.00021917,2]
[338420531,1726626648200,-1940.29,0.00021917,2]
[338420532,1726626648209,-500.0,0.00021917,2]
[338420533,1726626648220,-1940.29,0.00021917,2]
[338420534,1726626648230,-1940.29,0.00021917,2]
[338420535,1726626648239,-1940.29,0.00021917,2]
[338420536,1726626648249,-1940.29,0.00021917,2]
[338420537,1726626648259,-1940.29,0.00021917,2]
[338420538,1726626648270,-1940.29,0.00021917,2]
[338420539,1726626648281,-1940.29,0.00021917,2]
[338420540,1726626648291,-1940.29,0.00021917,2]
[338420541,1726626648302,-1940.29,0.00021917,2]
[338420542,1726626648311,-500.0,0.00021917,2]
[338420543,1726626648321,-1940.29,0.00021917,2]
[338420544,1726626648332,-1940.29,0.00021917,2]
[338420545,1726626648342,-1940.29,0.00021917,2]
[338420546,1726626648352,-1940.29,0.00021917,2]
[338420547,1726626648362,-500.0,0.00021917,2]
[338420548,1726626648371,-1940.29,0.00021917,2]
[338420549,1726626648381,-500.0,0.00021917,2]
[338420550,1726626648390,-500.0,0.00021917,2]
[338420551,1726626648399,-1940.29,0.00021917,2]
[338420552,1726626648409,-1940.29,0.00021917,2]
[338420553,1726626648419,-1940.29,0.00021917,2]
[338420554,1726626648429,-1940.29,0.00021917,2]
[338420555,1726626648440,-1940.29,0.00021917,2]
[338420556,1726626648450,-1940.29,0.00021917,2]
[338420557,1726626648460,-1940.29,0.00021917,2]
[338420558,1726626648470,-1940.29,0.00021917,2]
[338420559,1726626648479,-1098.8,0.00021917,2]
[338420560,1726626648488,-1940.33320769,0.00021917,2]
[338420561,1726626648499,-500.0,0.00021917,2]
[338420562,1726626648509,-500.0,0.00021917,2]
[338420563,1726626648520,-627.1,0.00021917,2]
[338420564,1726626648531,-500.0,0.00021917,2]
[338420565,1726626648541,-500.0,0.00021917,2]
[338420566,1726626648550,-782.55,0.00021917,2]
[338420567,1726626648560,-500.0,0.00021917,2]
[338420568,1726626648570,-500.0,0.00021917,2]
[338420569,1726626648581,-500.0,0.00021917,2]
[338420570,1726626648591,-915.03,0.00021917,2]
[338420571,1726626648604,-500.97100895,0.00021917,2]
[338420572,1726626648615,-702.97,0.00021917,2]
[338420573,1726626648624,-151.0,0.00021917,2]
[338420574,1726626648634,-151.0,0.00021917,2]
[338420575,1726626648644,-151.0,0.00021917,2]
[338420576,1726626648653,-151.0,0.00021917,2]
[338420577,1726626648662,-151.0,0.00021917,2]
[338420578,1726626648672,-151.0,0.00021917,2]
[338420579,1726626648684,-729.33,0.00021917,2]
[338420580,1726626648695,-1233.51,0.00021917,2]
[338420581,1726626648704,-500.0,0.00021917,2]
[338420582,1726626648714,-500.0,0.00021917,2]
[338420583,1726626648724,-830.03,0.00021917,2]
[338420584,1726626648734,-500.0,0.00021917,2]
[338420585,1726626648745,-500.0,0.00021917,2]
[338420586,1726626648755,-500.0,0.00021917,2]
[338420587,1726626648765,-151.0,0.00021917,2]
[338420588,1726626648775,-151.0,0.00021917,2]
[338420589,1726626648784,-151.0,0.00021917,2]
[338420590,1726626648794,-500.0,0.00021917,2]
[338420591,1726626648803,-500.0,0.00021917,2]
[338420592,1726626648813,-500.0,0.00021917,2]
[338420593,1726626648824,-500.0,0.00021917,2]
[338420594,1726626648842,-500.0,0.00021917,2]
[338420595,1726626648852,-500.0,0.00021917,2]
[338420596,1726626648861,-500.0,0.00021917,2]
[338420597,1726626648870,-500.0,0.00021917,2]
[338420598,1726626648880,-500.0,0.00021917,2]
[338420599,1726626648889,-500.0,0.00021917,2]
[338420600,1726626648899,-500.43206181,0.00021917,2]
[338420601,1726626648908,-500.0,0.00021917,2]
[338420602,1726626648917,-500.0,0.00021917,2]
[338420603,1726626648926,-500.0,0.00021917,2]
[338420604,1726626648936,-500.0,0.00021917,2]
[338420605,1726626648945,-500.0,0.00021917,2]
[338420606,1726626648955,-316.4756877,0.00021917,2]
[338420607,1726626648964,-500.0,0.00021917,2]
[338420608,1726626648973,-500.0,0.00021917,2]
[338420609,1726626648983,-500.0,0.00021917,2]
[338420610,1726626648992,-500.0,0.00021917,2]
[338420611,1726626649002,-500.0,0.00021917,2]
[338420612,1726626649012,-500.0,0.00021917,2]
[338420613,1726626649021,-500.0,0.00021917,2]
[338420614,1726626649031,-455.32074778,0.00021917,2]
[338420615,1726626649040,-500.0,0.00021917,2]
[338420616,1726626649051,-500.0,0.00021917,2]
[338420617,1726626649061,-3616.76,0.00021917,2]
[338420618,1726626649070,-691.92,0.00021917,2]
[338420619,1726626649080,-500.0,0.00021917,2]
[338420620,1726626649090,-500.0,0.00021917,2]
[338420621,1726626649100,-1020.03,0.00021917,2]
[338420622,1726626649109,-514.3,0.00021917,2]
[338420623,1726626649118,-504.05089004,0.00021917,2]
[338420624,1726626649128,-513.49093673,0.00021917,2]
[338420625,1726626649137,-500.0,0.00021917,2]
[338420626,1726626649147,-521.84,0.00021917,2]
[338420627,1726626649157,-1173.98,0.00021917,2]
[338420628,1726626649167,-500.0,0.00021917,2]
[338420629,1726626649176,-500.0,0.00021917,2]
[338420630,1726626649185,-1163.69,0.00021917,2]
[338420631,1726626649196,-500.0,0.00021917,2]
[338420632,1726626649205,-1107.81,0.00021917,2]
[338420633,1726626649215,-500.0,0.00021917,2]
[338420634,1726626649225,-258.37,0.00021917,2]
[338420635,1726626649234,-500.0,0.00021917,2]
[338420636,1726626649243,-500.0,0.00021917,2]
[338420637,1726626649252,-500.0,0.00021917,2]
[338420638,1726626649261,-962.09,0.00021917,2]
[338420639,1726626649270,-574.7359978,0.00021917,2]
[338420640,1726626649295,-1702.2625083,0.00021917,2]
[338420641,1726626649307,-326.3814939,0.00021917,2]
[338420642,1726626649316,-214.56201984,0.00021917,2]
[338420643,1726626649330,-285.43798016,0.00021917,2]
[338420644,1726626649340,-502.51581591,0.00021917,2]
[338420645,1726626649349,-500.0,0.00021917,2]
[338420646,1726626649359,-108.23671533,0.00021917,2]
[338420653,1726627516785,500.0,0.00024,120]
[338420654,1726627530861,500.0,0.00024,120]
[338420655,1726627553116,507.91345299,0.00024,120]
[338420657,1726627611362,500.0,0.00024,120]
[338420658,1726627648964,500.0,0.00023,120]
[338420665,1726627713350,-3000.0,0.00014804,2]
[338420669,1726627730887,541.0,0.00024,120]
[338420672,1726627757621,2003.205,0.00024,120]
[338420698,1726627832447,-774.1115533,0.0001556,2]
[338420699,1726627832460,-250.0,0.00015607,2]
[338420700,1726627832469,-300.0,0.00015639,2]
[338420701,1726627832480,-7521.76900943,0.0001564,2]
[338420720,1726627837256,500.0,0.00024,120]
[338420721,1726627838332,-1585.18840337,0.0001564,2]
[338420723,1726627838343,-13192.363866,0.0001564,2]
[338420724,1726627838352,-172.3732151,0.00015826,2]
[338420726,1726627838362,-500.0,0.00015875,2]
[338420728,1726627838372,-201.56158046,0.00015875,2]
[338420730,1726627838382,-434.39437592,0.00015875,2]
[338420732,1726627838393,-24900.0,0.00015876,2]
[338420733,1726627838404,-278.871167,0.00016606,2]
[338420734,1726627838414,-278.871167,0.0001661,2]
[338420735,1726627838425,-278.871167,0.00016615,2]
[338420736,1726627838435,-278.871167,0.00016619,2]
[338420738,1726627838446,-698.94642042,0.00016619,2]
[338420740,1726627838455,-278.871167,0.00016623,2]
[338420742,1726627838467,-278.871167,0.00016628,2]
[338420745,1726627838478,-278.871167,0.00016632,2]
[338420747,1726627838490,-278.871167,0.00016636,2]
[338420749,1726627838500,-278.871167,0.00016641,2]
[338420751,1726627838513,-278.871167,0.00016645,2]
[338420754,1726627838525,-278.871167,0.0001665,2]
[338420756,1726627838536,-278.871167,0.00016654,2]
[338420758,1726627838546,-278.871167,0.00016658,2]
[338420760,1726627838557,-278.871167,0.00016663,2]
[338420762,1726627838567,-278.871167,0.00016667,2]
[338420764,1726627838577,-278.871167,0.00016671,2]
[338420766,1726627838587,-278.871167,0.00016676,2]
[338420768,1726627838598,-278.871167,0.0001668,2]
[338420770,1726627838608,-278.871167,0.00016685,2]
[338420772,1726627838618,-278.871167,0.00016689,2]
[338420775,1726627838631,-159.731594,0.00016745,2]
[338420777,1726627838641,-250.0,0.00016757,2]
[338420778,1726627838651,-250.0,0.00016803,2]
[338420780,1726627838661,-250.0,0.00016849,2]
[338420782,1726627838671,-250.0,0.00016895,2]
[338420784,1726627838681,-250.0,0.00016941,2]
[338420785,1726627838691,-250.0,0.00016987,2]
[338420786,1726627838699,-250.0,0.00017033,2]
[338420787,1726627838709,-250.0,0.00017079,2]
[338420788,1726627838720,-250.0,0.00017125,2]
[338420789,1726627838729,-250.0,0.00017171,2]
[338420790,1726627838740,-420.0,0.00017202,2]
[338420791,1726627838750,-250.0,0.00017217,2]
[338420792,1726627838761,-250.0,0.00017263,2]
[338420793,1726627838772,-250.0,0.00017309,2]
[338420794,1726627838783,-250.0,0.00017355,2]
[338420795,1726627838794,-250.0,0.00017401,2]
[338420796,1726627838803,-250.0,0.00017447,2]
[338420797,1726627838814,-250.0,0.00017493,2]
[338420798,1726627838825,-250.0,0.00017538,2]
[338420799,1726627838834,-250.0,0.00017584,2]
[338420800,1726627838845,-250.0,0.0001763,2]
[338420801,1726627838857,-160.1029,0.00017752,2]
[338420802,1726627838867,-160.1029,0.0001777,2]
[338420803,1726627838877,-160.1029,0.00017787,2]
[338420804,1726627838886,-160.1029,0.00017805,2]
[338420805,1726627838895,-160.1029,0.00017823,2]
[338420806,1726627838905,-160.1029,0.00017841,2]
[338420807,1726627838914,-587.0,0.00018923,2]
[338420808,1726627838923,-498.59368118,0.00019039,2]
[338420809,1726627838933,-498.59368117,0.00019048,2]
[338420810,1726627838942,-498.59368117,0.00019056,2]
[338420811,1726627838951,-498.59368117,0.00019065,2]
[338420812,1726627838960,-498.59368117,0.00019073,2]
[338420813,1726627838970,-881.8,0.00019128,3]
[338420814,1726627838978,-440.9,0.00019128,3]
[338420815,1726627838987,-220.45,0.00019128,3]
[338420816,1726627838996,-661.37,0.00019128,3]
[338420817,1726627839005,-250.0,0.00019128,3]
[338420818,1726627839014,-314.81570821,0.00019137,2]
[338420819,1726627839024,-590.88316987,0.00019137,2]
[338420820,1726627839034,-500.0,0.00019137,2]
[338420821,1726627839043,-500.0,0.00019137,2]
[338420822,1726627839052,-500.0,0.00019137,2]
[338420823,1726627839061,-500.0,0.00019137,2]
[338420824,1726627839070,-500.0,0.00019137,2]
[338420825,1726627839079,-290.15810583,0.00019137,2]
[338420826,1726627839089,-500.0,0.00019137,2]
[338420827,1726627839098,-500.0,0.00019137,2]
[338420828,1726627839107,-500.0,0.00019137,2]
[338420829,1726627839117,-500.0,0.00019137,2]
[338420830,1726627839126,-500.0,0.00019137,2]
[338420831,1726627839135,-350.13589333,0.00019137,2]
[338420832,1726627839144,-500.0,0.00019137,2]
[338420833,1726627839153,-500.0,0.00019137,2]
[338420834,1726627839162,-500.0,0.00019137,2]
[338420835,1726627839171,-500.0,0.00019137,2]
[338420836,1726627839181,-515.36814026,0.00019137,2]
[338420837,1726627839190,-500.0,0.00019137,2]
[338420838,1726627839200,-500.0,0.00019137,2]
[338420839,1726627839209,-500.0,0.00019137,2]
[338420840,1726627839220,-500.0,0.00019137,2]
[338420841,1726627839229,-400.0,0.00019137,2]
[338420842,1726627839239,-500.0,0.00019137,2]
[338420843,1726627839248,-500.0,0.00019137,2]
[338420844,1726627839257,-500.0,0.00019137,2]
[338420845,1726627839266,-495303.892991,0.00019138,3]
[338420846,1726627839276,-132896.265281,0.00019138,3]
[338420847,1726627839285,-33224.0663202,0.00019148,3]
[338420848,1726627839295,-166120.331601,0.00019168,3]
[338420849,1726627839304,-200.91528279,0.00019173,2]
[338420850,1726627839312,-159.9027995,0.00019173,2]
[338420851,1726627839322,-500.50555096,0.00019173,2]
[338420852,1726627839331,-543.61726829,0.00019173,2]
[338420853,1726627839340,-513.32263156,0.00019173,2]
[338420854,1726627839349,-500.4431137,0.00019173,2]
[338420855,1726627839359,-254.69698023,0.00019173,2]
[338420856,1726627839370,-500.35776297,0.00019173,2]
[338420857,1726627839379,-500.49163467,0.00019173,2]
[338420858,1726627839390,-522.25634702,0.00019173,2]
[338420859,1726627839402,-500.0,0.00019173,2]
[338420860,1726627839412,-538.72167419,0.00019173,2]
[338420861,1726627839423,-500.78291911,0.00019173,2]
[338420862,1726627839432,-500.0,0.00019173,2]
[338420863,1726627839444,-160.11335754,0.00019173,2]
[338420864,1726627839456,-500.0,0.00019173,2]
[338420865,1726627839466,-591.02249132,0.00019173,2]
[338420866,1726627839477,-500.37104256,0.00019173,2]
[338420867,1726627839487,-500.0,0.00019173,2]
[338420868,1726627839498,-500.48891412,0.00019173,2]
[338420869,1726627839508,-500.92865773,0.00019173,2]
[338420870,1726627839520,-501.02580175,0.00019173,2]
[338420871,1726627839532,-160.04022025,0.00019173,2]
[338420872,1726627839542,-500.99242898,0.00019173,2]
[338420873,1726627839552,-500.38098052,0.00019173,2]
[338420874,1726627839564,-500.0,0.00019173,2]
[338420875,1726627839575,-500.0,0.00019173,2]
[338420876,1726627839586,-20065.35768176,0.00019178,5]
[338420877,1726627839596,-502.3850266,0.00019178,2]
[338420878,1726627839607,-1073.38100527,0.00019178,2]
[338420879,1726627839617,-501.17668923,0.00019178,2]
[338420880,1726627839631,-500.0,0.00019178,2]
[338420881,1726627839642,-500.0,0.00019178,2]
[338420882,1726627839653,-185.70526164,0.00019178,2]
[338420883,1726627839663,-500.0,0.00019178,2]
[338420884,1726627839674,-500.0,0.00019178,2]
[338420885,1726627839683,-500.0,0.00019178,2]
[338420886,1726627839693,-313.04695056,0.00019178,2]
[338420887,1726627839703,-500.83673935,0.00019178,2]
[338420888,1726627839713,-500.0,0.00019178,2]
[338420889,1726627839725,-500.0,0.00019178,2]
[338420890,1726627839735,-500.0,0.00019178,2]
[338420891,1726627839745,-607.55,0.00019178,2]
[338420892,1726627839756,-500.0,0.00019178,2]
[338420893,1726627839768,-1770.19,0.00019178,2]
[338420894,1726627839781,-500.0,0.00019178,2]
[338420895,1726627839791,-1147.85,0.00019178,2]
[338420896,1726627839801,-500.0,0.00019178,2]
[338420897,1726627839813,-500.0,0.00019178,2]
[338420898,1726627839823,-488.12630859,0.00019178,2]
[338420899,1726627839833,-500.0,0.00019178,2]
[338420900,1726627839843,-500.0,0.00019178,2]
[338420901,1726627839854,-500.0,0.00019178,2]
[338420902,1726627839863,-500.0,0.00019178,2]
[338420903,1726627839874,-500.0,0.00019178,2]
[338420904,1726627839884,-500.0,0.00019178,2]
[338420905,1726627839895,-500.0,0.00019178,2]
[338420906,1726627839906,-727.55,0.00019178,2]
[338420907,1726627839917,-500.70892798,0.00019178,2]
[338420908,1726627839927,-500.0,0.00019178,2]
[338420909,1726627839938,-500.0,0.00019178,2]
[338420910,1726627839949,-750.01,0.00019178,2]
[338420911,1726627839958,-500.0,0.00019178,2]
[338420912,1726627839970,-500.0,0.00019178,2]
[338420913,1726627839980,-500.0,0.00019178,2]
[338420914,1726627839991,-500.0,0.00019178,2]
[338420915,1726627840002,-500.0,0.00019178,2]
[338420916,1726627840013,-500.0,0.00019178,2]
[338420917,1726627840023,-500.0,0.00019178,2]
[338420918,1726627840034,-500.0,0.00019178,2]
[338420919,1726627840047,-611.6,0.00019178,2]
[338420920,1726627840058,-500.0,0.00019178,2]
[338420921,1726627840070,-500.0,0.00019178,2]
[338420927,1726627840080,-500.0,0.00019178,2]
[338420928,1726627840230,-500.0,0.00019178,2]
[338420929,1726627840239,-500.0,0.00019178,2]
[338420930,1726627840248,-500.0,0.00019178,2]
[338420931,1726627840258,-500.0,0.00019178,2]
[338420932,1726627840270,-450.12881755,0.00019178,2]
[338420934,1726627840281,-500.0,0.00019178,2]
[338420936,1726627840292,-500.0,0.00019178,2]
[338420938,1726627840303,-500.0,0.00019178,2]
[338420940,1726627840313,-500.0,0.00019178,2]
[338420941,1726627840324,-747.39,0.00019178,2]
[338420942,1726627840335,-500.0,0.00019178,2]
[338420943,1726627840346,-805.97,0.00019178,2]
[338420944,1726627840356,-500.0,0.00019178,2]
[338420945,1726627840366,-500.0,0.00019178,2]
[338420946,1726627840377,-500.72,0.00019178,2]
[338420947,1726627840386,-500.0,0.00019178,2]
[338420948,1726627840396,-500.0,0.00019178,2]
[338420949,1726627840407,-641.6981366,0.00019178,2]
[338420950,1726627840417,-500.0,0.00019178,2]
[338420951,1726627840427,-500.0,0.00019178,2]
[338420952,1726627840436,-500.0,0.00019178,2]
[338420953,1726627840449,-500.0,0.00019178,2]
[338420954,1726627840459,-1086.64,0.00019178,2]
[338420955,1726627840469,-500.0,0.00019178,2]
[338420956,1726627840478,-500.0,0.00019178,2]
[338420957,1726627840489,-500.0,0.00019178,2]
[338420958,1726627840498,-500.0,0.00019178,2]
[338420959,1726627840508,-500.0,0.00019178,2]
[338420960,1726627840517,-500.0,0.00019178,2]
[338420961,1726627840529,-1064.58,0.00019178,2]
[338420962,1726627840539,-500.0,0.00019178,2]
[338420963,1726627840548,-1300.1,0.00019178,2]
[338420964,1726627840558,-500.0,0.00019178,2]
[338420965,1726627840567,-500.0,0.00019178,2]
[338420966,1726627840577,-500.0,0.00019178,2]
[338420967,1726627840587,-500.0,0.00019178,2]
[338420968,1726627840596,-532.04378667,0.00019178,2]
[338420969,1726627840606,-1017.71,0.00019178,2]
[338420970,1726627840615,-720.04,0.00019178,2]
[338420971,1726627840625,-500.0,0.00019178,2]
[338420972,1726627840635,-500.0,0.00019178,2]
[338420973,1726627840645,-500.0,0.00019178,2]
[338420974,1726627840655,-1101.06,0.00019178,2]
[338420975,1726627840665,-500.0,0.00019178,2]
[338420976,1726627840675,-745.15,0.00019178,2]
[338420977,1726627840685,-1011.45,0.00019178,2]
[338420978,1726627840694,-500.0,0.00019178,2]
[338420979,1726627840703,-500.0,0.00019178,2]
[338420980,1726627840713,-250.0,0.00019178,2]
[338420981,1726627840723,-500.0,0.00019178,2]
[338420982,1726627840733,-500.0,0.00019178,2]
[338420983,1726627840742,-535.68,0.00019178,2]
[338420984,1726627840751,-716.28,0.00019178,2]
[338420985,1726627840761,-500.0,0.00019178,2]
[338420986,1726627840771,-504.1266409,0.00019178,2]
[338420987,1726627840780,-500.0,0.00019178,2]
[338420988,1726627840790,-500.0,0.00019178,2]
[338420989,1726627840800,-500.0,0.00019178,2]
[338420990,1726627840810,-550.21,0.00019178,2]
[338420991,1726627840821,-693.63,0.00019178,2]
[338420992,1726627840831,-500.0,0.00019178,2]
[338420993,1726627840841,-500.0,0.00019178,2]
[338420994,1726627840851,-219.85106024,0.00019178,2]
[338420995,1726627840861,-500.0,0.00019178,2]
[338420996,1726627840871,-500.0,0.00019178,2]
[338420997,1726627840881,-500.0,0.00019178,2]
[338420998,1726627840890,-500.0,0.00019178,2]
[338420999,1726627840900,-500.0,0.00019178,2]
[338421000,1726627840909,-500.0,0.00019178,2]
[338421001,1726627840919,-500.0,0.00019178,2]
[338421002,1726627840928,-500.0,0.00019178,2]
[338421003,1726627840937,-500.0,0.00019178,2]
[338421004,1726627840947,-500.0,0.00019178,2]
[338421005,1726627840956,-500.0,0.00019178,2]
[338421006,1726627840965,-500.0,0.00019178,2]
[338421007,1726627840974,-500.0,0.00019178,2]
[338421008,1726627840984,-2958.51,0.00019178,2]
[338421009,1726627840993,-500.60998887,0.00019178,2]
[338421010,1726627841003,-762.35,0.00019178,2]
[338421011,1726627841012,-1259.66,0.00019178,2]
[338421012,1726627841022,-500.0,0.00019178,2]
[338421013,1726627841031,-500.0,0.00019178,2]
[338421014,1726627841041,-297.71152575,0.00019178,2]
[338421015,1726627841050,-500.0,0.00019178,2]
[338421016,1726627841060,-508.16464804,0.00019178,2]
[338421017,1726627841069,-500.0,0.00019178,2]
[338421018,1726627841079,-500.0,0.00019178,2]
[338421019,1726627841088,-748.56,0.00019178,2]
[338421020,1726627841097,-760.0,0.00019178,2]
[338421021,1726627841107,-450.82569015,0.00019178,2]
[338421022,1726627841116,-500.0,0.00019178,2]
[338421023,1726627841125,-500.0,0.00019178,2]
[338421024,1726627841135,-500.0,0.00019178,2]
[338421025,1726627841145,-210.2631478,0.00019178,2]
[338421026,1726627841154,-500.0,0.00019178,2]
[338421027,1726627841163,-500.0,0.00019178,2]
[338421028,1726627841172,-500.0,0.00019178,2]
[338421029,1726627841182,-279.5143847,0.00019178,2]
[338421030,1726627841191,-500.0,0.00019178,2]
[338421031,1726627841200,-500.0,0.00019178,2]
[338421032,1726627841210,-500.0,0.00019178,2]
[338421033,1726627841219,-500.0,0.00019178,2]
[338421034,1726627841228,-694.98,0.00019178,2]